bitfinex-derivatives/quotes_BTCF0:USTF0_20251103
["timestamp","ask_amount","ask_price","bid_price","bid_amount"]
[1762197699427,0.40375,107110.0,107100.0,0.04875109]
[1762197699936,0.40375,107110.0,107100.0,0.14214589]
[1762197700232,0.40375,107110.0,107100.0,0.04875109]
[1762197700428,0.40375,107110.0,107100.0,0.02491109]
[1762197700731,0.72959,107110.0,107100.0,0.00308109]
[1762197700933,0.73296,107110.0,107100.0,0.00308109]
[1762197701134,0.73296,107110.0,107100.0,0.02491109]
[1762197701335,0.40812,107110.0,107100.0,0.02491109]
[1762197701630,0.733,107110.0,107100.0,0.02491109]
[1762197701829,1.15832194,107110.0,107100.0,0.00308109]
[1762197702135,1.25170804,107110.0,107100.0,0.00308109]
[1762197705231,0.5015061,107110.0,107100.0,0.15462599]
[1762197705430,0.04732,107110.0,107100.0,0.51542599]
[1762197705634,0.00437,107110.0,107100.0,0.51542599]
[1762197706023,0.1425261,107110.0,107100.0,0.51542599]
[1762197706337,0.1425261,107110.0,107100.0,0.14116599]
[1762197707236,0.67038638,107120.0,107100.0,0.15562599]
[1762197707541,0.4945261,107110.0,107100.0,0.04413]
[1762197707737,0.4945261,107110.0,107100.0,0.1375218]
[1762197708532,0.4955261,107110.0,107100.0,0.1375218]
[1762197709136,0.4955261,107110.0,107100.0,0.04413]
[1762197709734,0.05794,107100.0,107090.0,0.4623299]
[1762197709933,0.41874,107100.0,107090.0,0.36893]
[1762197710332,0.41874,107100.0,107090.0,0.4623329]
[1762197710529,0.40557,107100.0,107090.0,0.4623329]
[1762197710840,0.41874,107100.0,107090.0,0.4623329]
[1762197711147,0.40557,107100.0,107090.0,0.4623329]
[1762197711435,0.40557,107100.0,107090.0,0.49578436]
[1762197711742,0.40557,107100.0,107090.0,0.4623329]
[1762197712246,0.40557,107100.0,107090.0,0.49578436]
[1762197714744,0.41874,107100.0,107090.0,0.49578436]
[1762197715041,0.5121343,107100.0,107090.0,0.03345146]
[1762197715245,0.138173,107090.0,107080.0,0.55965492]
[1762197715449,0.498973,107090.0,107080.0,0.50947773]
[1762197717145,0.498973,107090.0,107080.0,0.35827213]
[1762197717443,1.01569494,107090.0,107080.0,0.00010067]
[1762197717834,0.823773,107090.0,107080.0,0.00010067]
[1762197718033,0.823773,107090.0,107080.0,0.11478117]
[1762197718233,0.73037,107090.0,107080.0,0.13764117]
[1762197718838,0.8277718,107090.0,107080.0,0.00010067]
[1762197720741,0.8247718,107090.0,107080.0,0.00010067]
[1762197720939,0.8247718,107090.0,107080.0,0.11477937]
[1762197721242,0.3608,107090.0,107080.0,0.15109937]
[1762197721446,0.73033,107110.0,107100.0,0.1375212]
[1762197721643,0.73033,107110.0,107100.0,0.1369212]
[1762197721840,0.05794,107100.0,107090.0,0.04413]
[1762197722033,0.41874,107100.0,107090.0,0.13753]
[1762197722235,0.41874,107100.0,107080.0,0.03355213]
[1762197722236,0.04477,107090.0,107080.0,0.03355213]
[1762197722433,0.40557,107090.0,107080.0,0.45184083]
[1762197722632,0.40557,107090.0,107080.0,0.37970213]
[1762197723045,0.40557,107090.0,107080.0,0.49597083]
[1762197723545,0.40557,107090.0,107080.0,0.54614802]
[1762197723940,0.40557,107090.0,107080.0,0.49597083]
[1762197724444,0.40557,107090.0,107080.0,0.45273932]
[1762197724743,0.40657,107090.0,107080.0,0.45273932]
[1762197724948,0.40657,107090.0,107080.0,0.03355213]
[1762197724949,0.86228801,107090.0,107080.0,0.03355213]
[1762197725541,0.73137,107090.0,107080.0,0.17109083]
[1762197725941,0.73137,107090.0,107080.0,0.07768213]
[1762197726850,0.73137,107090.0,107080.0,0.17109093]
[1762197727142,0.40657,107090.0,107080.0,0.18455093]
[1762197727346,0.3618,107090.0,107080.0,0.52607666]
[1762197727548,0.001,107090.0,107080.0,1.01779467]
[1762197727845,0.001,107090.0,107080.0,0.60681748]
[1762197728037,0.001,107090.0,107080.0,0.96761748]
[1762197728242,0.001,107090.0,107080.0,0.47589947]
[1762197728643,0.001,107090.0,107080.0,0.52622895]
[1762197728838,0.41874,107100.0,107090.0,0.1375301]
[1762197729044,0.41874,107100.0,107090.0,0.0776831]
[1762197729252,0.41874,107100.0,107090.0,0.1710832]
[1762197730145,0.5121313,107100.0,107090.0,0.1710832]
[1762197730346,0.5131313,107100.0,107090.0,0.22141268]
[1762197731441,0.64404931,107100.0,107090.0,0.0335531]
[1762197732153,0.5131313,107100.0,107090.0,0.1710832]
[1762197733451,0.5131313,107100.0,107090.0,0.0776831]
[1762197734653,0.5131313,107100.0,107090.0,0.1710832]
[1762197735553,0.5131313,107100.0,107090.0,0.0776831]
[1762197735753,0.5131313,107100.0,107090.0,0.1710832]
[1762197737753,0.41974,107100.0,107090.0,0.1710832]
[1762197738149,0.5131314,107100.0,107090.0,0.1710832]
[1762197738554,0.5131314,107100.0,107090.0,0.0776831]
[1762197738753,0.5131314,107100.0,107090.0,0.1710832]
[1762197739056,0.5131314,107100.0,107090.0,0.22141268]
[1762197739255,0.5131314,107100.0,107090.0,0.1710832]
[1762197739556,0.5131314,107100.0,107090.0,0.22141268]
[1762197739756,0.5131314,107100.0,107090.0,0.1710832]
[1762197740157,0.5131314,107100.0,107090.0,0.22141268]
[1762197741254,0.8377314,107100.0,107090.0,0.22141268]
[1762197741755,0.8377314,107100.0,107090.0,0.10515258]
[1762197741954,0.96864941,107100.0,107090.0,0.0335531]
[1762197742261,0.1454501,107090.0,107080.0,0.05043015]
[1762197742449,0.63716811,107090.0,107080.0,0.05043015]
[1762197742649,0.63716811,107090.0,107080.0,0.00010067]
[1762197743152,0.65865679,107090.0,107080.0,0.00010067]
[1762197743657,0.65865679,107090.0,107080.0,0.09350947]
[1762197743849,0.65865679,107090.0,107080.0,0.00010067]
[1762197744044,0.66165679,107090.0,107080.0,0.09350947]
[1762197744250,0.66165679,107090.0,107080.0,0.00010067]
[1762197745649,0.65865679,107090.0,107080.0,0.00010067]
[1762197745847,0.98425679,107090.0,107080.0,0.00010067]
[1762197746753,0.98325679,107090.0,107080.0,0.00010067]
[1762197746958,0.98525679,107090.0,107080.0,0.05910067]
[1762197747158,0.43633868,107090.0,107080.0,0.15250947]
[1762197747348,0.4074,107090.0,107080.0,0.20283895]
[1762197747657,0.3851,107090.0,107080.0,0.20283895]
[1762197747959,0.40793,107090.0,107080.0,0.15250947]
[1762197748157,0.5013307,107090.0,107080.0,0.20288206]
[1762197748356,0.40793,107090.0,107080.0,0.15250947]
[1762197748954,0.40593,107090.0,107080.0,0.15250947]
[1762197749464,0.54429801,107090.0,107080.0,0.05047699]
[1762197749754,0.29870052,107090.0,107080.0,0.00010067]
[1762197749957,1.02030052,107090.0,107080.0,0.00010067]
[1762197750158,0.88938251,107090.0,107080.0,0.00010067]
[1762197751160,0.88938251,107090.0,107080.0,0.13910887]
[1762197751361,0.8675794,107090.0,107080.0,0.18948519]
[1762197751558,0.04613,107090.0,107080.0,0.18948519]
[1762197751759,0.001,107090.0,107080.0,0.3204032]
[1762197752065,0.04495,107090.0,107080.0,0.27002688]
[1762197752266,0.1413495,107090.0,107080.0,0.27002688]
[1762197752562,0.1413495,107090.0,107080.0,0.13910887]
[1762197752755,0.1383495,107090.0,107080.0,0.13910887]
[1762197753164,0.04495,107090.0,107080.0,0.13910887]
[1762197754066,0.1383495,107090.0,107080.0,0.13910887]
[1762197754663,0.1383495,107090.0,107080.0,0.27002688]
[1762197756371,0.1383495,107090.0,107080.0,0.33733628]
[1762197756870,0.1383495,107090.0,107080.0,0.35069628]
[1762197757564,0.04495,107090.0,107080.0,0.35069628]
[1762197757970,0.1383495,107090.0,107080.0,0.35069628]
[1762197759373,0.04495,107090.0,107080.0,0.35069628]
[1762197759574,0.40575,107100.0,107090.0,0.1389995]
[1762197759777,0.5032848,107110.0,107100.0,0.1523508]
[1762197759966,0.5032848,107110.0,107100.0,0.10933007]
[1762197760476,0.64737281,107110.0,107090.0,0.37497007]
[1762197760670,0.64322881,107100.0,107090.0,0.37497007]
[1762197760972,0.1457995,107090.0,107080.0,0.05047074]
[1762197761169,0.5065995,107090.0,107080.0,0.07298074]
[1762197761367,0.5065995,107090.0,107080.0,0.09607074]
[1762197761570,0.5065995,107090.0,107080.0,0.18947904]
[1762197761771,0.5065995,107090.0,107080.0,0.20283904]
[1762197761971,0.5065995,107090.0,107080.0,0.10943074]
[1762197762173,0.5065995,107090.0,107080.0,0.09607074]
[1762197762375,0.5075995,107090.0,107080.0,0.07298074]
[1762197762568,0.5075995,107090.0,107080.0,0.20283904]
[1762197762569,0.73135,107090.0,107080.0,0.20283904]
[1762197762869,0.40675,107090.0,107080.0,0.20283904]
[1762197763074,0.73135,107090.0,107080.0,0.20283904]
[1762197763473,0.8247496,107090.0,107080.0,0.20283904]
[1762197764081,0.40675,107090.0,107080.0,0.20283904]
[1762197764476,0.5001496,107090.0,107080.0,0.20283904]
[1762197764978,0.1393496,107090.0,107080.0,0.56363904]
[1762197765370,0.1393496,107090.0,107080.0,0.20283904]
[1762197765572,0.5001496,107090.0,107080.0,0.20283904]
[1762197766779,0.5001496,107090.0,107080.0,0.20283894]
[1762197766979,0.5075996,107090.0,107080.0,0.09607074]
[1762197767478,0.5075996,107090.0,107080.0,0.18947894]
[1762197768174,0.5075996,107090.0,107080.0,0.09461074]
[1762197768378,0.5075996,107090.0,107080.0,0.10724074]
[1762197768678,0.5001496,107090.0,107080.0,0.20064894]
[1762197769873,0.5075996,107090.0,107080.0,0.05047074]
[1762197770482,0.5075996,107090.0,107060.0,0.57679164]
[1762197770483,0.18151801,107070.0,107060.0,0.00308224]
[1762197770779,0.37528,107070.0,107060.0,0.00308224]
[1762197770976,0.52799739,107070.0,107060.0,0.00308224]
[1762197771182,1.10625194,107070.0,107060.0,0.00308224]
[1762197771376,1.23723683,107070.0,107060.0,0.00308224]
[1762197771579,1.10631882,107070.0,107060.0,0.00308224]
[1762197771975,1.10731882,107070.0,107060.0,0.00308224]
[1762197772680,1.23823683,107070.0,107060.0,0.00308224]
[1762197773773,1.26022007,107070.0,107060.0,0.00308224]
[1762197774080,1.49374007,107070.0,107060.0,0.00308224]
[1762197774276,0.04402,107050.0,107040.0,0.05677]
[1762197774477,0.40482,107050.0,107040.0,0.05677]
[1762197775077,0.40482,107050.0,107040.0,0.1502133]
[1762197775771,0.40482,107050.0,107040.0,0.1522133]
[1762197777677,0.41762,107050.0,107040.0,0.05877]
[1762197777872,0.04402,107050.0,107040.0,0.1522133]
[1762197778285,0.1374547,107050.0,107040.0,0.1522133]
[1762197778581,0.63699271,107050.0,107040.0,0.002]
[1762197778785,0.63699271,107050.0,107040.0,0.02402]
[1762197779186,0.5060747,107050.0,107040.0,0.04614]
[1762197779680,0.8307147,107050.0,107040.0,0.04614]
[1762197780187,0.8307147,107050.0,107040.0,0.1395834]
[1762197780384,0.8307147,107050.0,107040.0,0.1522134]
[1762197780686,0.7295,107050.0,107040.0,0.1522134]
[1762197780873,0.8229347,107050.0,107040.0,0.1522134]
[1762197781078,0.4982547,107050.0,107040.0,0.1522134]
[1762197781979,0.8229347,107050.0,107040.0,0.1522134]
[1762197782179,0.4982547,107050.0,107040.0,0.1522134]
[1762197782486,0.8229347,107050.0,107040.0,0.1522134]
[1762197782681,0.8229347,107050.0,107040.0,0.05877]
[1762197782884,0.8229347,107050.0,107040.0,0.1522134]
[1762197785188,0.8307547,107050.0,107040.0,0.05877]
[1762197785384,0.96167271,107050.0,107040.0,0.002]
[1762197785586,0.1438721,107030.0,107020.0,0.00308339]
[1762197785883,0.8654721,107030.0,107020.0,0.14068429]
[1762197786088,1.1901521,107030.0,107020.0,0.14068429]
[1762197786284,1.1901521,107030.0,107020.0,0.04722339]
[1762197786489,1.1901521,107030.0,107020.0,0.00308339]
[1762197786684,1.1902447,107030.0,107020.0,0.00308339]
[1762197787884,1.1902447,107030.0,107020.0,0.09654469]
[1762197789189,1.1902447,107030.0,107020.0,0.00308339]
[1762197789689,0.1502813,107020.0,107010.0,8.341e-05]
[1762197789893,0.70333335,107020.0,107010.0,8.341e-05]
[1762197791482,0.70333335,107020.0,107010.0,0.00108341]
[1762197791685,0.1375075,106990.0,106980.0,0.47806554]
[1762197791886,0.51400485,106990.0,106980.0,0.00308454]
[1762197792395,0.51400485,106990.0,106980.0,0.09658074]
[1762197792695,0.42061012,106990.0,106980.0,0.14072074]
[1762197792990,0.40491277,106990.0,106980.0,0.15335074]
[1762197793988,0.04411277,106990.0,106980.0,0.15335074]
[1762197796401,9.277e-05,106990.0,106980.0,0.15335074]
[1762197797087,0.02234277,106990.0,106980.0,0.15335074]
[1762197797290,0.04482277,106990.0,106980.0,0.15335074]
[1762197798601,0.13831027,106990.0,106980.0,0.15335074]
[1762197799402,0.51190027,106990.0,106980.0,0.04722454]
[1762197799697,0.51190027,106990.0,106980.0,0.46552074]
[1762197799896,0.51190027,106990.0,106980.0,0.46552084]
[1762197800095,0.51190027,106990.0,106980.0,0.14072084]
[1762197800292,0.40562277,106990.0,106980.0,0.15462084]
[1762197800492,0.50326027,106990.0,106980.0,0.15462084]
[1762197802311,0.40977277,106990.0,106980.0,0.15462084]
[1762197803210,0.04897277,106990.0,106980.0,0.15462084]
[1762197803417,0.50326027,106990.0,106980.0,0.15462084]
[1762197804817,0.40977277,106990.0,106980.0,0.15462084]
[1762197805002,0.50326037,106990.0,106980.0,0.15462084]
[1762197805619,0.40977277,106990.0,106980.0,0.15462084]
[1762197805814,0.04897277,106990.0,106980.0,0.15462084]
[1762197806119,0.14246037,106990.0,106980.0,0.15462084]
[1762197806311,0.50326037,106990.0,106980.0,0.15462084]
[1762197807817,0.70831242,106990.0,106980.0,0.00308454]
[1762197808010,0.50326037,106990.0,106980.0,0.15390084]
[1762197808508,0.51606037,106990.0,106980.0,0.15390084]
[1762197810921,0.51606037,106990.0,106980.0,0.14017084]
[1762197812107,0.70831242,106990.0,106980.0,0.00308454]
[1762197813314,0.73082377,106990.0,106980.0,0.00308454]
[1762197815918,0.115265,106970.0,106960.0,0.0935126]
[1762197816122,0.505245,106970.0,106960.0,0.1371026]
[1762197816312,0.05094,106970.0,106960.0,0.1508326]
[1762197816513,0.04375,106970.0,106960.0,0.1508326]
[1762197817214,0.04375,106970.0,106960.0,0.1528326]
[1762197817409,0.05094,106970.0,106960.0,0.002]
[1762197817617,0.04375,106950.0,106940.0,0.153937]
[1762197817828,0.04375,106950.0,106940.0,0.0604057]
[1762197818118,0.4980726,106950.0,106940.0,0.153937]
[1762197818326,0.4980726,106950.0,106940.0,0.0604057]
[1762197818512,0.4980726,106950.0,106940.0,0.1539371]
[1762197818714,0.4980726,106950.0,106940.0,0.0634057]
[1762197819419,1.02800465,106950.0,106940.0,0.0060857]
[1762197819618,1.02811907,106950.0,106940.0,0.0060857]
[1762197820117,1.02811907,106950.0,106940.0,0.0030857]
[1762197820620,0.1500813,106940.0,106930.0,8.249e-05]
[1762197820814,0.52025576,106940.0,106930.0,0.02218249]
[1762197821210,0.52025576,106940.0,106930.0,8.249e-05]
[1762197821420,0.52025576,106940.0,106930.0,0.02218249]
[1762197821923,0.71250781,106940.0,106930.0,0.00108249]
[1762197822313,0.94630781,106940.0,106930.0,0.00108249]
[1762197822515,0.96882447,106940.0,106930.0,0.00108249]
[1762197822816,0.73502447,106940.0,106930.0,0.00108249]
[1762197823007,0.73502447,106940.0,106930.0,0.13821269]
[1762197823008,0.77412112,106940.0,106930.0,0.13821269]
[1762197823211,0.40455,106940.0,106930.0,0.15094269]
[1762197823408,0.40855,106940.0,106930.0,0.05740249]
[1762197823610,0.40855,106940.0,106930.0,0.15094259]
[1762197824014,0.40455,106940.0,106930.0,0.15094259]
[1762197824218,0.5148814,106940.0,106930.0,0.04367249]
[1762197824422,0.5148814,106940.0,106930.0,0.04517249]
[1762197825023,0.40855,106940.0,106930.0,0.15233259]
[1762197825224,0.5020813,106940.0,106930.0,0.15233259]
[1762197825417,0.40855,106940.0,106930.0,0.15233259]
[1762197825610,0.5020814,106940.0,106930.0,0.15233259]
[1762197826013,0.5020814,106940.0,106930.0,0.05879249]
[1762197826423,0.5148814,106940.0,106930.0,0.05879249]
[1762197827219,0.5020814,106940.0,106930.0,0.15233259]
[1762197827621,0.4980814,106940.0,106930.0,0.15233259]
[1762197827825,0.40755,106940.0,106930.0,0.15233259]
[1762197828822,0.5010813,106940.0,106930.0,0.15233259]
[1762197829222,0.5010813,106940.0,106930.0,0.47725259]
[1762197829522,0.5010813,106940.0,106930.0,0.05879249]
[1762197829718,0.5138813,106940.0,106930.0,0.05879249]
[1762197830811,0.5138813,106940.0,106930.0,0.04517249]
[1762197831521,0.5180313,106940.0,106930.0,0.04517249]
[1762197831922,0.5180313,106940.0,106930.0,0.13871279]
[1762197832124,0.5180313,106940.0,106930.0,0.15233279]
[1762197832519,0.5180313,106940.0,106930.0,0.05879249]
[1762197832820,0.5180313,106940.0,106930.0,0.04517249]
[1762197833521,0.5180313,106940.0,106930.0,0.13871289]
[1762197833716,0.5052313,106940.0,106930.0,0.15233289]
[1762197833912,0.4117,106940.0,106930.0,0.15233289]
[1762197834116,0.5052316,106940.0,106930.0,0.15233289]
[1762197834330,0.4117,106940.0,106930.0,0.15233289]
[1762197834617,0.1444315,106940.0,106930.0,0.15233289]
[1762197835717,0.0509,106940.0,106930.0,0.15233289]
[1762197838124,0.0509,106940.0,106930.0,0.51313289]
[1762197838322,0.0509,106940.0,106930.0,0.56333491]
[1762197838517,0.02914,106940.0,106930.0,0.56333491]
[1762197838717,0.00715,106940.0,106930.0,0.56333491]
[1762197838920,0.00415,106940.0,106930.0,0.79713491]
[1762197839122,0.00515,106940.0,106930.0,0.79713491]
[1762197839712,0.00515,106940.0,106930.0,0.56333491]
[1762197839920,0.00515,106940.0,106930.0,0.79713491]
[1762197840526,0.00515,106940.0,106930.0,0.56333491]
[1762197841026,0.1435416,106940.0,106930.0,1.03389491]
[1762197842127,0.05001,106940.0,106930.0,1.03389491]
[1762197842329,0.00515,106940.0,106930.0,1.03389491]
[1762197842922,0.00515,106940.0,106930.0,1.03385491]
[1762197843222,0.1435425,106940.0,106930.0,0.70893491]
[1762197843421,0.05001,106940.0,106930.0,1.03385491]
[1762197844127,0.05001,106940.0,106930.0,0.67305491]
[1762197844828,0.02755,106940.0,106930.0,0.67305491]
[1762197845017,0.00515,106940.0,106930.0,0.67305491]
[1762197845218,0.00515,106940.0,106930.0,1.03385491]
[1762197845631,0.00515,106940.0,106930.0,0.98365289]
[1762197846330,0.00515,106940.0,106930.0,1.11488776]
[1762197846526,0.00011442,106950.0,106940.0,0.1520733]
[1762197846721,0.40566,106970.0,106960.0,0.1520558]
[1762197846922,0.50839463,106970.0,106960.0,0.4769758]
[1762197847331,0.4991671,106970.0,106960.0,0.4769758]
[1762197847723,0.49925073,106970.0,106960.0,0.4769758]
[1762197847927,0.50225073,106970.0,106960.0,0.5273609]
[1762197848432,0.40874363,106970.0,106960.0,0.5273609]
[1762197848728,0.50225073,106970.0,106960.0,0.5273609]
[1762197849629,0.50225073,106970.0,106960.0,0.4338451]
[1762197850125,0.50225073,106970.0,106960.0,0.5273609]
[1762197851321,0.40874363,106970.0,106960.0,0.5273609]
[1762197851532,0.50225083,106970.0,106960.0,0.5273609]
[1762197852723,0.50940083,106970.0,106960.0,0.0953051]
[1762197853029,0.6406357,106970.0,106960.0,0.3698]
[1762197854830,0.1441759,106960.0,106950.0,0.0951851]
[1762197855031,0.04551,106960.0,106950.0,0.2021197]
[1762197855222,0.40631,106960.0,106950.0,0.2021197]
[1762197855632,0.50290343,106970.0,106960.0,0.05821]
[1762197855832,0.50290343,106970.0,106960.0,0.1517259]
[1762197856835,0.49990343,106970.0,106960.0,0.1517259]
[1762197857535,0.50190343,106970.0,106960.0,0.1517259]
[1762197858137,0.1390259,106960.0,106950.0,0.2021194]
[1762197858336,0.5073359,106960.0,106950.0,0.2021194]
[1762197858738,0.5073359,106960.0,106950.0,0.1085951]
[1762197858939,0.63857077,106960.0,106950.0,0.0951851]
[1762197859237,0.63857077,106960.0,106950.0,0.0448]
[1762197859431,0.63857077,106960.0,106950.0,0.0951851]
[1762197859635,0.63857077,106960.0,106950.0,0.0448]
[1762197860440,0.63957077,106960.0,106950.0,0.0951851]
[1762197860641,0.5083359,106960.0,106950.0,0.1887098]
[1762197860835,0.5083359,106960.0,106950.0,0.1383247]
[1762197861344,0.8341759,106960.0,106950.0,0.0951851]
[1762197861541,0.8341759,106960.0,106950.0,0.0448]
[1762197861740,0.8341759,106960.0,106950.0,0.1383247]
[1762197862133,0.8341759,106960.0,106950.0,0.1887098]
[1762197862334,0.40831,106960.0,106950.0,0.2021198]
[1762197863138,0.04751,106960.0,106950.0,0.5629198]
[1762197864343,0.002,106960.0,106950.0,0.5125347]
[1762197864642,0.002,106960.0,106950.0,0.71095198]
[1762197864836,0.02502,106960.0,106950.0,0.71095198]
[1762197865237,0.04751,106960.0,106950.0,0.57971711]
[1762197865437,0.04751,106960.0,106950.0,0.71095198]
[1762197865937,0.02502,106960.0,106950.0,0.71095198]
[1762197866138,0.002,106960.0,106950.0,0.71095198]
[1762197866838,0.002,106960.0,106950.0,0.94471198]
[1762197867039,8.363e-05,106970.0,106960.0,0.1517259]
[1762197867237,8.363e-05,106970.0,106960.0,0.96856077]
[1762197867443,0.40631,106990.0,106980.0,0.1517084]
[1762197867637,0.41560712,106990.0,106980.0,0.1517084]
[1762197867839,0.52309682,106990.0,106980.0,0.20210818]
[1762197868146,0.50909682,106990.0,106980.0,0.20210818]
[1762197868348,0.50909682,106990.0,106980.0,0.1517084]
[1762197868835,0.52309682,106990.0,106980.0,0.0448]
[1762197869238,0.52309682,106990.0,106980.0,0.05856]
[1762197869638,0.52709682,106990.0,106980.0,0.05856]
[1762197870341,0.52709682,106990.0,106980.0,0.1520585]
[1762197873549,0.52509682,106990.0,106980.0,0.1520585]
[1762197873749,0.1367684,106980.0,106970.0,0.52593478]
[1762197873943,0.64245327,106980.0,106970.0,0.41901978]
[1762197874446,0.72114838,106980.0,106970.0,0.41901978]
[1762197874838,0.60253339,106980.0,106970.0,0.52628698]
[1762197875038,0.50903499,106980.0,106970.0,0.52628698]
[1762197876147,0.51103499,106980.0,106970.0,0.52628698]
[1762197876367,0.40607,106980.0,106970.0,0.52628698]
[1762197878651,0.5132185,106980.0,106970.0,0.09425978]
[1762197878855,0.64439776,106980.0,106970.0,0.05039978]
[1762197879052,0.64439776,106980.0,106970.0,0.07182978]
[1762197879359,0.64439776,106980.0,106970.0,0.09425978]
[1762197879658,0.0935072,106970.0,106960.0,0.48203898]
[1762197879846,0.4975772,106970.0,106960.0,0.52589898]
[1762197880148,0.4975772,106970.0,106960.0,0.20117898]
[1762197880348,0.4975772,106970.0,106960.0,0.52589898]
[1762197884759,0.4975772,106970.0,106960.0,0.20117898]
[1762197885450,0.5101872,106970.0,106960.0,0.18777588]
[1762197886851,0.40407,106970.0,106960.0,0.20147588]
[1762197887053,0.04327,106970.0,106960.0,0.20147588]
[1762197887454,0.04327,106970.0,106960.0,0.1510761]
[1762197888252,0.04527,106970.0,106960.0,0.1510761]
[1762197889352,0.1387778,106970.0,106960.0,0.1510761]
[1762197889944,0.4995778,106970.0,106960.0,0.1510761]
[1762197890349,0.4995778,106970.0,106960.0,0.21825851]
[1762197892156,0.4995779,106970.0,106960.0,0.21825851]
[1762197892355,0.40607,106970.0,106960.0,0.21825851]
[1762197893257,0.04527,106970.0,106960.0,0.21825851]
[1762197893458,0.1387779,106970.0,106960.0,0.21825851]
[1762197893654,0.4995779,106970.0,106960.0,0.21825851]
[1762197894149,0.4995779,106970.0,106960.0,0.1510761]
[1762197894354,0.4995779,106970.0,106960.0,0.21825851]
[1762197895066,0.40607,106970.0,106960.0,0.1510761]
[1762197895359,0.04527,106970.0,106960.0,0.21825851]
[1762197895760,0.1387779,106970.0,106960.0,0.21825851]
[1762197896158,0.1387779,106970.0,106960.0,0.1510761]
[1762197896355,0.1387779,106970.0,106960.0,0.21825851]
[1762197897160,0.1387779,106970.0,106960.0,0.1510761]
[1762197897660,0.04527,106970.0,106960.0,0.1510761]
[1762197898057,0.1387779,106970.0,106960.0,0.1510761]
[1762197898458,0.1387779,106970.0,106960.0,0.25602806]
[1762197899260,0.24372986,106970.0,106960.0,0.25602806]
[1762197899559,0.1387779,106970.0,106960.0,0.25602806]
[1762197899757,0.24372986,106970.0,106960.0,0.25602806]
[1762197901058,0.15022196,106970.0,106960.0,0.25602806]
[1762197901359,0.1387779,106970.0,106960.0,0.25602806]
[1762197901562,0.60452986,106970.0,106960.0,0.25602866]
[1762197902160,0.60452986,106970.0,106960.0,0.1510767]
[1762197902466,0.61713986,106970.0,106960.0,0.25602866]
[1762197902655,0.61713986,106970.0,106960.0,0.1373767]
[1762197902966,0.1461167,106960.0,106950.0,0.06718241]
[1762197903259,0.1386154,106950.0,106940.0,0.12476241]
[1762197903457,0.61780736,106950.0,106940.0,0.11100241]
[1762197903766,0.61780736,106950.0,106940.0,0.20453661]
[1762197903950,0.61780736,106950.0,106940.0,0.11100241]
[1762197904155,0.1520642,106940.0,106930.0,0.5429825]
[1762197904462,0.04409,106940.0,106930.0,0.64793446]
[1762197904666,0.60337616,106940.0,106930.0,0.64793446]
[1762197905062,1.04612812,106940.0,106930.0,0.0893949]
[1762197905359,1.04612812,106940.0,106930.0,0.05049737]
[1762197906367,1.04612812,106940.0,106930.0,8.249e-05]
[1762197907060,1.28092812,106940.0,106930.0,8.249e-05]
[1762197907566,1.29041884,106940.0,106930.0,8.249e-05]
[1762197907771,0.84871492,106940.0,106930.0,8.249e-05]
[1762197907965,1.05861884,106940.0,106930.0,8.249e-05]
[1762197908472,0.1486616,106920.0,106910.0,0.09423488]
[1762197908662,0.8340616,106920.0,106910.0,0.09423488]
[1762197909269,0.74059249,106920.0,106910.0,0.18779528]
[1762197909466,0.74059249,106920.0,106910.0,0.20149528]
[1762197909667,8.249e-05,106920.0,106910.0,0.61694736]
[1762197909863,0.40889,106940.0,106930.0,0.1510629]
[1762197910166,0.40889,106940.0,106930.0,0.30642495]
[1762197910167,0.04809,106940.0,106930.0,0.30642495]
[1762197910366,0.38332,106950.0,106940.0,0.1373542]
[1762197910574,0.40589,106950.0,106940.0,0.25612116]
[1762197910871,0.40589,106950.0,106940.0,0.58076116]
[1762197911173,0.40589,106950.0,106940.0,0.63105625]
[1762197911774,0.40689,106950.0,106940.0,0.63105625]
[1762197912270,0.04609,106950.0,106940.0,0.99185625]
[1762197912574,0.04609,106950.0,106940.0,0.89593222]
[1762197912775,0.001,106950.0,106940.0,0.91281954]
[1762197913274,0.84351504,106970.0,106960.0,0.1156467]
[1762197913869,0.41534694,106970.0,106960.0,0.1510367]
[1762197914269,0.40589,106970.0,106960.0,0.66811667]
[1762197914469,0.003,106970.0,106960.0,0.71839148]
[1762197914670,0.003,106970.0,106960.0,1.02891667]
[1762197915472,0.40526,107000.0,106990.0,0.1507505]
[1762197915678,0.4987417,107000.0,106990.0,0.1507505]
[1762197916065,0.40526,107000.0,106990.0,0.1507505]
[1762197916273,0.4987417,107000.0,106990.0,0.1507505]
[1762197916473,0.40526,107000.0,106990.0,0.1507505]
[1762197917269,0.40926,107000.0,106990.0,0.1507505]
[1762197918568,0.02522,107000.0,106990.0,0.1507505]
[1762197918867,0.04846,107000.0,106990.0,0.1507505]
[1762197919073,0.1419417,107000.0,106990.0,0.1507505]
[1762197920076,0.04846,107000.0,106990.0,0.1507505]
[1762197920379,0.1419417,107000.0,106990.0,0.1507505]
[1762197921072,0.1506104,106990.0,106980.0,0.02267]
[1762197921366,0.5114104,106990.0,106980.0,0.34719]
[1762197921571,0.5114104,106990.0,106980.0,0.32452]
[1762197922273,0.5114104,106990.0,106980.0,0.4406892]
[1762197922466,0.5114104,106990.0,106980.0,0.4624692]
[1762197922770,0.5134104,106990.0,106980.0,0.36897]
[1762197922971,0.8379304,106990.0,106980.0,0.36897]
[1762197923171,0.1506192,106980.0,106970.0,0.4752865]
[1762197923368,0.4987592,106980.0,106970.0,0.4752865]
[1762197924376,0.40626,106980.0,106970.0,0.4752865]
[1762197924576,0.04546,106980.0,106970.0,0.4752865]
[1762197925773,0.001,106980.0,106970.0,0.4752865]
[1762197925972,0.001,106980.0,106970.0,0.71798332]
[1762197926469,0.02222,106980.0,106970.0,0.71798332]
[1762197926669,0.02222,106980.0,106970.0,0.52554335]
[1762197926868,0.02122,106980.0,106970.0,0.52554335]
[1762197927470,0.04446,106980.0,106970.0,0.4752865]
[1762197927665,0.1379592,106980.0,106970.0,0.4752865]
[1762197927871,0.4987592,106980.0,106970.0,0.4752865]
[1762197928273,0.4987592,106980.0,106970.0,0.1507679]
[1762197928579,0.41792,106980.0,106970.0,0.1507679]
[1762197928875,0.40526,106980.0,106970.0,0.1507679]
[1762197929078,0.4987592,106980.0,106970.0,0.1507679]
[1762197929574,0.4997592,106980.0,106970.0,0.1507679]
[1762197929779,0.40626,106980.0,106970.0,0.1507679]
[1762197930267,0.001,106980.0,106970.0,0.34320787]
[1762197930465,0.001,106980.0,106970.0,0.70400787]
[1762197930665,0.3608,107000.0,106970.0,0.75426472]
[1762197930970,0.40452,107000.0,106990.0,0.1501805]
[1762197931274,0.04372,107000.0,106990.0,0.70342047]
[1762197931573,0.04372,107000.0,106990.0,0.75367732]
[1762197932677,0.04672,107010.0,107000.0,0.1501717]
[1762197932872,0.04672,107010.0,107000.0,0.4746517]